{"text_format":"1","workbook":"xlsx","n_sheets":4,"sheets":["制作仕様書(CM)","制作仕様書(CM無し)","【提出用】TVCM制作見積確認スケジュール(制作)","内容リスト設定(制作)"],"not_rendered":{"charts":0,"images":3,"macros":1,"external_links":0,"defined_names":6,"comments":1,"pivot_tables":0},"unopened":[],"bounds":{"document_bytes":16777216,"sheet_cells":100000,"rows_first":2000,"rows_last":500,"rows_between":2000,"halvings":0,"cell_chars":16384,"cell_head_chars":4096},"cells_cut":0,"cells_raw":0,"read":"whole","date_system":"1900"}

{"sheet":"制作仕様書(CM)","index":0,"n_rows":113,"n_cols":55,"rows_kept":113,"cut":false,"hidden":false,"merged":[[102,26,102,28],[102,29,102,34],[105,1,112,3],[105,4,105,34],[106,4,106,34],[107,4,107,6],[107,7,107,25],[107,26,107,27],[107,29,107,31],[107,32,107,34],[108,4,108,6],[108,7,108,34],[112,4,112,6],[112,7,112,34],[109,4,109,34],[110,4,110,34],[111,4,111,6],[111,7,111,25],[111,26,111,27],[111,29,111,31],[111,32,111,34],[97,4,97,34],[100,1,104,3],[100,4,100,7],[100,8,100,20],[100,21,100,23],[100,24,100,34],[101,4,101,5],[101,6,101,14],[101,15,101,16],[101,17,101,24],[101,25,101,26],[103,4,103,6],[103,7,103,25],[103,26,103,27],[103,29,103,31],[103,32,103,34],[104,4,104,6],[104,7,104,34],[101,27,101,34],[102,11,102,12],[102,14,102,15],[102,16,102,18],[102,20,102,22],[102,23,102,25],[88,29,88,31],[88,32,88,34],[89,4,89,6],[89,7,89,34],[90,1,99,3],[90,4,90,34],[91,4,91,34],[92,4,92,34],[93,4,93,6],[93,7,93,25],[93,26,93,27],[93,29,93,31],[98,4,98,6],[98,7,98,25],[98,26,98,27],[98,29,98,31],[98,32,98,34],[99,4,99,6],[99,7,99,34],[93,32,93,34],[94,4,94,6],[94,7,94,34],[95,4,95,34],[96,4,96,34],[82,4,82,34],[83,4,83,6],[83,7,83,25],[83,26,83,27],[83,29,83,31],[83,32,83,34],[76,0,76,3],[76,4,76,34],[77,0,77,3],[77,4,77,34],[79,0,112,0],[79,1,79,3],[79,4,79,34],[80,1,89,3],[80,4,80,34],[81,4,81,34],[84,4,84,6],[84,7,84,34],[85,4,85,34],[86,4,86,34],[87,4,87,34],[88,4,88,6],[88,7,88,25],[88,26,88,27],[69,0,74,3],[69,4,70,6],[69,8,69,19],[69,20,70,22],[69,24,69,34],[70,8,70,19],[70,24,70,34],[71,4,72,6],[71,8,71,19],[71,20,72,22],[71,24,71,34],[72,8,72,19],[72,24,72,34],[73,4,74,6],[73,8,73,19],[73,20,74,22],[73,24,73,34],[74,8,74,19],[74,24,74,34],[66,0,66,3],[66,4,66,34],[67,0,67,3],[67,5,67,12],[67,14,67,21],[67,23,67,34],[63,29,64,31],[63,32,64,33],[63,34,64,34],[64,4,64,23],[65,0,65,3],[65,4,65,34],[62,21,62,23],[63,0,64,3],[63,4,63,23],[63,24,64,25],[63,26,64,27],[63,28,64,28],[61,0,61,3],[61,4,61,5],[61,6,61,34],[62,0,62,3],[62,4,62,5],[62,6,62,8],[62,9,62,11],[62,12,62,14],[62,15,62,17],[62,18,62,20],[56,0,57,3],[56,4,56,10],[56,11,56,17],[56,18,57,21],[56,22,56,27],[56,28,56,34],[57,4,57,10],[57,11,57,17],[57,22,57,27],[57,28,57,34],[54,0,55,3],[54,4,54,10],[54,11,54,17],[54,18,55,21],[54,22,55,27],[54,28,54,34],[55,4,55,10],[55,11,55,17],[55,28,55,34],[51,0,52,0],[51,1,51,3],[51,4,51,34],[52,1,52,3],[52,4,52,34],[53,0,53,34],[47,31,47,34],[48,4,49,5],[48,6,49,13],[48,14,49,17],[48,18,49,20],[48,21,49,22],[48,23,49,30],[48,31,49,34],[43,31,44,34],[46,0,49,3],[46,4,46,20],[46,21,46,34],[47,4,47,5],[47,6,47,13],[47,14,47,17],[47,18,47,20],[47,21,47,22],[47,23,47,30],[43,4,44,5],[43,6,44,13],[43,14,44,17],[43,18,44,20],[43,21,44,22],[43,23,44,30],[41,0,44,3],[41,4,41,20],[41,21,41,34],[42,4,42,5],[42,6,42,13],[42,14,42,17],[42,18,42,20],[42,21,42,22],[42,23,42,30],[42,31,42,34],[36,31,37,34],[38,4,39,5],[38,6,39,13],[38,14,39,17],[38,18,39,20],[38,21,39,22],[38,23,39,30],[38,31,39,34],[36,4,37,5],[36,6,37,13],[36,14,37,17],[36,18,37,20],[36,21,37,22],[36,23,37,30],[34,0,39,3],[34,4,34,20],[34,21,34,34],[35,4,35,5],[35,6,35,13],[35,14,35,17],[35,18,35,20],[35,21,35,22],[35,23,35,30],[35,31,35,34],[29,0,29,34],[30,0,32,3],[30,4,30,34],[31,4,31,34],[32,4,32,34],[33,0,33,34],[28,0,28,3],[28,9,28,12],[28,13,28,16],[28,18,28,21],[28,22,28,25],[28,31,28,34],[19,17,19,19],[19,22,19,23],[19,26,19,29],[19,32,19,34],[20,2,20,14],[24,29,24,34],[25,0,27,3],[26,18,26,21],[27,17,27,22],[27,23,27,28],[27,29,27,34],[22,2,22,14],[22,17,22,19],[22,22,22,23],[22,26,22,29],[22,32,22,34],[24,0,24,3],[24,4,24,10],[24,12,24,17],[24,18,24,21],[24,22,24,27],[16,0,16,3],[16,4,16,16],[16,17,16,20],[16,21,16,34],[18,0,22,1],[18,2,18,14],[18,15,22,16],[18,17,18,19],[18,20,22,21],[18,22,18,23],[20,17,20,19],[20,22,20,23],[20,26,20,29],[20,32,20,34],[21,2,21,14],[21,17,21,19],[21,22,21,23],[21,26,21,29],[21,32,21,34],[18,24,22,25],[18,26,18,29],[18,30,22,31],[18,32,18,34],[19,2,19,14],[13,0,14,3],[13,4,13,16],[13,21,13,23],[13,24,14,34],[14,4,14,16],[14,21,14,23],[10,15,10,16],[10,21,10,23],[10,24,10,34],[11,21,12,23],[11,24,12,34],[12,0,12,3],[12,4,12,16],[7,0,7,3],[7,4,7,16],[7,24,9,34],[9,0,9,3],[9,4,9,16],[10,0,10,3],[10,4,10,6],[10,7,10,8],[10,10,10,12],[10,13,10,14],[5,0,5,3],[5,4,5,16],[5,21,5,23],[5,24,6,34],[6,0,6,3],[6,4,6,16],[1,0,1,12],[1,13,1,26],[1,28,1,34],[2,0,2,34],[3,0,3,5],[3,7,3,11],[3,14,3,15],[3,26,3,28],[3,29,3,34]]}
[]
["ＴＶＣＭ　制作仕様書　[1次]",null,null,null,null,null,null,null,null,null,null,null,null,null,null,null,null,null,null,null,null,null,null,null,null,null,null,"No."]
["　　※この仕様書は、2018年6月1日以降に受注する映像制作案件において適用する「新取引」受注形態の考え方に基づくものです。\n　　 「新取引」では制作会社は初号納品までを請負うことが前提となり、ｵﾝｴｱﾌｫｰﾏｯﾄ作成以降の作業は別途「搬入ｻﾎﾟｰﾄ見積」による「ｵﾌﾟｼｮﾝ作業」となります。"]
[null,null,null,null,null,null,"[",null,null,null,null,null,"局","]","御中",null,null,null,null,null,null,null,null,null,null,null,"作成日："]
[]
["制作責任者",null,null,null,null,null,null,null,null,null,null,null,null,null,null,null,null,null,null,null,null,"制作会社：",null,null,null,null,null,null,null,null,null,null,null,null,null,null,null,null,null,null,"\n"]
["担当営業"]
["担当ＣＤ"]
[]
["制作見積額"]
["ﾌﾟﾛﾀﾞｸｼｮﾝ管理費",null,null,null,"　",null,null,null,null,"%","　",null,null,null,null,null,null,null,null,null,null,"担当部署："]
[null,null,null,null,null,null,null,null,null,null,null,null,null,null,null,null,null,null,null,null,null," 連絡先："]
["制作物"]
["変更の概要\n(2次確認書以降)",null,null,null,null,null,null,null,null,null,null,null,null,null,null,null,null,null,null,null,null," 担当者："]
[]
[]
["広告主",null,null,null,null,null,null,null,null,null,null,null,null,null,null,null,null,"商品名"]
[]
["題名",null,null,null,null,null,null,null,null,null,null,null,null,null,null,"秒数",null,null,null,null,"篇数\n(ﾀｲﾌﾟ数)",null,null,null,"用途\n種別",null,null,null,null,null,"映像\nｻｲｽﾞ"]
[]
[]
[]
[null,null,null,null,null,null,null,null,null,null,null,null,null,null,null,null,null,null,null,null,null,null,null,null,null,null,"　"]
[]
["制作期間",null,null,null,null,null,null,null,null,null,null,"～",null,null,null,null,null,null,"使用期間",null,null,null,null,null,null,null,null,null,"～"]
["使用媒体/\n用途",null,null,null,null,"地上波",null,null,null,"BS",null,null,null,"CS/CATV",null,null,null,null,"ﾗｼﾞｵ",null,null,null,"OOH",null,null,null,null,"ﾄﾚｲﾝﾁｬﾝﾈﾙ"]
[null,null,null,null,null,"店頭",null,null,null,"ｲﾍﾞﾝﾄ",null,null,null,"機内ﾋﾞｼﾞｮﾝ",null,null,null,null,"ｼﾈｱﾄﾞ",null,null,null,"ｵｳﾝﾄﾞﾒﾃﾞｨｱ",null,null,null,null,"ﾊﾞﾅｰ動画"]
[null,null,null,null,null,"SNS",null,null,null,"無料配信動画",null,null,null,null,null,"その他",null,"(広告賞)",null,null,null,null,null,"(　　　　　)",null,null,null,null,null,"(　　　　　)"]
["使用地域",null,null,null,null,"国内（全国）",null,null,null,"国内（地域）/",null,null,null,"　",null,null,null,null,"海外（地域）/",null,null,null,null,null,null,null,null,"WEB",null,null,"他/",null,null,null,null,null,"「制作見積」:「初号原版作成費(初号ﾌｫｰﾏｯﾄ作成費込)」「初号試写用素材作成費」迄を計上。","「制作見積」:「初号試写用素材作成費」迄を計上。(初号ﾌｫｰﾏｯﾄ作成費は編集費に含む)　※初号原版作成なし","「制作見積」:「初号試写用素材作成費」「？？？？？費」迄を計上。(初号ﾌｫｰﾏｯﾄ作成費は編集費に含む)",null,null,null,null,null,null,null,null,null,"「搬入ｻﾎﾟｰﾄ見積(ｵﾌﾟｼｮﾝ)」:なし (※OAﾌﾟﾘﾝﾄ受託不可)","「搬入ｻﾎﾟｰﾄ見積」:「OA原版作成費(OAﾌｫｰﾏｯﾄ作成費込)」を計上。(※HDCAM OAﾌﾟﾘﾝﾄ受託可)","「搬入ｻﾎﾟｰﾄ見積」:「ｱｯﾌﾟﾛｰﾄﾞ用MXF作成費(OAﾌｫｰﾏｯﾄ作成費込)」「CMﾒﾀ登録費」「ｱｯﾌﾟﾛｰﾄﾞ費」を計上。(※HDCAM OAﾌﾟﾘﾝﾄ受託可)","「搬入ｻﾎﾟｰﾄ見積」:「XDCAMﾌﾟﾘﾝﾄﾏｽﾀｰ作成費(OAﾌｫｰﾏｯﾄ作成費込)」「CMﾒﾀ登録費」「ｱｯﾌﾟﾛｰﾄﾞ費」「OAﾌﾟﾘﾝﾄ費(XDCAM/HDCAM)」を計上。","「搬入ｻﾎﾟｰﾄ見積」:「XDCAMﾌﾟﾘﾝﾄﾏｽﾀｰ作成費(OAﾌｫｰﾏｯﾄ作成費込)」「OAﾌﾟﾘﾝﾄ費(XDCAM/HDCAM)」を計上。","「搬入ｻﾎﾟｰﾄ見積」:「OAﾌｫｰﾏｯﾄ作成費」「OAﾌﾟﾘﾝﾄ費(HDCAM)」を計上。","「搬入ｻﾎﾟｰﾄ見積」:「特定媒体ﾌﾟﾘﾝﾄﾏｽﾀｰ作成費(搬入ﾌｫｰﾏｯﾄ作成費込)」「特定媒体ﾌﾟﾘﾝﾄ費」「？？？？？費」を計上。"]
[null,null,null,null,null,null,null,null,null,null,null,null,null,null,null,null,null,null,null,null,null,null,null,null,null,null,null,null,null,null,null,null,null,null,null,null,"・原版の納品までを弊社の責任範囲とします。御社による検収完了以降、弊社は一切の責任を免責されます。\n・検収で瑕疵が指摘された場合、弊社は営業時間内において速やかに修正・差替えの対応を致します。\n・検収の完了はﾒｰﾙ等で速やかに弊社に通知されるものとします。検収完了通知がない場合でも、納品物が搬入素材作成業務に使用された段階で検収完了となります。","・原版の納品までを弊社の責任範囲とします。御社による検収完了以降、弊社は一切の責任を免責されます。\n・検収で瑕疵が指摘された場合、弊社は営業時間内において速やかに修正・差替えの対応を致します。\n・検収の完了はﾒｰﾙ等で速やかに弊社に通知されるものとします。検収完了通知がない場合でも、納品物が搬入素材作成業務に使用された段階で検収完了となります。\n※[弊社物納ﾌﾟﾘﾝﾄがある場合]：弊社作成の物納ﾌﾟﾘﾝﾄ素材の放送局搬入後に瑕疵指摘がありそれが弊社業務に起因するものである場合は、弊社は営業時間内において\n　 速やかに追加費用なしで修正・差替え対応を致します。また、場合により最大で再搬入費用の半額を分担するまでの責任を負います。\n　 ただし、未知の問題に起因する場合は、弊社はこの責任を担いません。","・原版のｱｯﾌﾟﾛｰﾄﾞ納品までを弊社の責任範囲とします。御社によるｵﾝﾗｲﾝでの承認完了＝検収完了以降、弊社は一切の責任を免責されます。\n・検収で瑕疵が指摘された場合、弊社は営業時間内において速やかに修正・差替えの対応を致します。\n・検収の完了はｵﾝﾗｲﾝでｼｽﾃﾑを介し弊社に通知されますが、万一検収完了通知がされない場合でも、納品物が搬入素材作成業務に使用された段階で検収完了となります。\n※[弊社物納ﾌﾟﾘﾝﾄがある場合]：弊社作成の物納ﾌﾟﾘﾝﾄ素材の放送局搬入後に瑕疵指摘がありそれが弊社業務に起因するものである場合は、弊社は営業時間内において\n　 速やかに追加費用なしで修正・差替え対応を致します。また、場合により最大で再搬入費用の半額を分担するまでの責任を負います。\n　 ただし、未知の問題に起因する場合は、弊社はこの責任を担いません。","・原版のｱｯﾌﾟﾛｰﾄﾞ納品までを弊社の責任範囲とします。御社によるｵﾝﾗｲﾝでの承認完了＝検収完了以降、弊社は一切の責任を免責されます。\n・検収で瑕疵が指摘された場合、弊社は営業時間内において速やかに修正・差替えの対応を致します。\n・検収の完了はｵﾝﾗｲﾝでｼｽﾃﾑを介し弊社に通知されますが、万一検収完了通知がされない場合でも、納品物が搬入素材作成業務に使用された段階で検収完了となります。\n※弊社作成の物納ﾌﾟﾘﾝﾄ素材の放送局搬入後に瑕疵指摘がありそれが弊社業務に起因するものである場合は、弊社は営業時間内において速やかに追加費用なしで修正・\n　 差替え対応を致します。また、場合により最大で再搬入費用の半額を分担するまでの責任を負います。\n　 ただし、未知の問題に起因する場合は、弊社はこの責任を担いません。","※弊社作成の物納ﾌﾟﾘﾝﾄ素材の放送局搬入後に瑕疵指摘がありそれが弊社業務に起因するものである場合は、弊社は営業時間内において速やかに追加費用なしで修正・\n　 差替え対応を致します。また、場合により最大で再搬入費用の半額を分担するまでの責任を負います。\n　 ただし、未知の問題に起因する場合は、弊社はこの責任を担いません。"]
["制作会社\n業務範囲\n(ｵﾌﾟｼｮﾝ指定)",null,null,null,null,null,null,null,null,null,null,null,null,null,null,null,null,null,null,null,null,null,null,null,null,null,null,null,null,null,null,null,null,null,null,null,"保管せず","初号納品日より3ヶ月間保管(有償/制作費扱い)\n※保管延長する場合は保管期間満了前の要請が必須","初号納品日より1年間保管(有償/制作費扱い)\n※保管延長する場合は保管期間満了前の要請が必須","初号納品日より2年間保管(有償/制作費扱い)\n※保管延長する場合は保管期間満了前の要請が必須","初号納品日より○年間保管(有償/制作費扱い)\n※保管延長する場合は保管期間満了前の要請が必須","-","　","(以下は「納品」の場合のﾌﾟﾙﾀﾞｳﾝ要素)","初号納品後○○に納品(梱包・配送料等は有償/制作費扱い)"]
[null,null,null,null,null,null,null,null,null,null,null,null,null,null,null,null,null,null,null,null,null,null,null,null,null,null,null,null,null,null,null,null,null,null,null,null,"初号納品後速やかに廃棄(有償/制作費扱い)","保管期間満了時に自動廃棄(費用は保管費に含む)","-","　","(以下は「納品」の場合のﾌﾟﾙﾀﾞｳﾝ要素)","初号納品後○○に納品(梱包・配送料等は有償/制作費扱い)"]
[]
["■制作会社納品物"]
["〈制作見積内〉\n初号の納品物\n(初号ﾌｫｰﾏｯﾄ)",null,null,null,"〈初号原版〉TV-CM OA用途となり得る初号ﾌｫｰﾏｯﾄ納品原版(50Mbps以上)",null,null,null,null,null,null,null,null,null,null,null,null,null,null,null,null,"TV-CM OA用途以外の初号ﾌｫｰﾏｯﾄ納品素材"]
[null,null,null,null,"有無",null,"納品形態",null,null,null,null,null,null,null,"使用用途",null,null,null,"保管者/保管期間",null,null,"有無",null,"納品形態",null,null,null,null,null,null,null,"使用用途"]
[]
[]
[]
[]
[]
["〈制作見積外\n  ｵﾌﾟｼｮﾝ〉\nTV-CM OA用途の\n納品物\n(OAﾌｫｰﾏｯﾄ)",null,null,null,"〈OA原版〉TV-CM OA用途のOAﾌｫｰﾏｯﾄ納品原版(50Mbps以上)",null,null,null,null,null,null,null,null,null,null,null,null,null,null,null,null,"〈TV-CM物納OAﾌﾟﾘﾝﾄ〉"]
[null,null,null,null,"有無",null,"納品形態",null,null,null,null,null,null,null,"使用用途",null,null,null,"保管者/保管期間",null,null,"有無",null,"納品形態",null,null,null,null,null,null,null,"使用用途"]
[]
[]
[]
["〈制作見積外\n  ｵﾌﾟｼｮﾝ〉\nTV-CM以外の\nｵﾌﾟｼｮﾝ納品物",null,null,null,"〈特定媒体用原版〉TV-CM以外の特定ﾌｫｰﾏｯﾄ納品原版(50Mbps以上)",null,null,null,null,null,null,null,null,null,null,null,null,null,null,null,null,"TV-CM以外の特定媒体用ﾌﾟﾘﾝﾄ納品物"]
[null,null,null,null,"有無",null,"納品形態",null,null,null,null,null,null,null,"使用用途",null,null,null,"保管者/保管期間",null,null,"有無",null,"納品形態",null,null,null,null,null,null,null,"使用用途"]
[]
[]
[]
["責任分界","要権利処理外注先関連"]
[null,"搬入ｻﾎﾟｰﾄ\n関連"]
["■TV-CMｵﾝﾗｲﾝ運用関連"]
["広告主/広告会社\n内容確認担当者",null,null,null,null,null,null,null,null,null,null,null,null,null,null,null,null,null,"ｵﾝﾗｲﾝ\n素材搬入事業者"]
[]
["制作会社\n内容確認担当者",null,null,null,null,null,null,null,null,null,null,null,null,null,null,null,null,null,"制作会社\n作業担当者"]
[]
[]
[]
[]
["指定ｽﾀｯﾌ有無"]
["撮影有無",null,null,null,null,null,"撮影地域",null,null,null,null,null,"撮影種別",null,null,null,null,null,"音声種別"]
["撮影日数\n撮影場所",null,null,null,null,null,null,null,null,null,null,null,null,null,null,null,null,null,null,null,null,null,null,null,"撮影日\n合計",null,null,null,"日","準備/移動/天候予備等\n合計",null,null,null,null,"日"]
[]
["天候予備\nの考え方"]
["追加ﾘｽｸ対応の\n可能性"]
["警備関連",null,null,null,null,"制作会社が警備会社に支払う",null,null,null,null,null,null,null,null,"広告会社が警備会社に支払う",null,null,null,null,null,null,null,null,"警備の手配は必要なし"]
[]
["保管/廃棄\nなど",null,null,null,"小道具",null,null,"保管",null,null,null,null,null,null,null,null,null,null,null,null,"衣装",null,null,"保管"]
[null,null,null,null,null,null,null,"廃棄",null,null,null,null,null,null,null,null,null,null,null,null,null,null,null,"廃棄"]
[null,null,null,null,"美術用作成物",null,null,"保管",null,null,null,null,null,null,null,null,null,null,null,null,"特別\n（　　　）",null,null,"保管"]
[null,null,null,null,null,null,null,"廃棄",null,null,null,null,null,null,null,null,null,null,null,null,null,null,null,"廃棄"]
[null,null,null,null,"資料",null,null,"保管",null,null,null,null,null,null,null,null,null,null,null,null,"素材",null,null,"保管"]
[null,null,null,null,null,null,null,"廃棄",null,null,null,null,null,null,null,null,null,null,null,null,null,null,null,"廃棄"]
[]
["割増単価規定"]
["その他\n特記事項"]
[]
["権　利　処　理","競合拘束条件"]
[null,"出演者/\nﾅﾚｰﾀｰ"]
[]
[]
[null,null,null,null,"契約期間/",null,null,null,null,null,null,null,null,null,null,null,null,null,null,null,null,null,null,null,null,null,"支払い/",null,null,"制作会社",null,null,"広告会社"]
[null,null,null,null,"備考/"]
[]
[]
[]
[null,null,null,null,"契約期間/",null,null,null,null,null,null,null,null,null,null,null,null,null,null,null,null,null,null,null,null,null,"支払い/",null,null,"制作会社",null,null,"広告会社"]
[null,null,null,null,"備考/"]
[null,"映像素材"]
[]
[null,null,null,null,"　"]
[null,null,null,null,"契約期間/",null,null,null,null,null,null,null,null,null,null,null,null,null,null,null,null,null,null,null,null,null,"支払い/",null,null,"制作会社",null,null,"広告会社"]
[null,null,null,null,"備考/"]
[]
[]
[null,null,null,null,"　"]
[null,null,null,null,"契約期間/",null,null,null,null,null,null,null,null,null,null,null,null,null,null,null,null,null,null,null,null,null,"支払い/",null,null,"制作会社",null,null,"広告会社"]
[null,null,null,null,"備考/"]
[null,"音楽",null,null,"音楽ﾌﾟﾛﾀﾞｸｼｮﾝ/",null,null,null,null,null,null,null,null,null,null,null,null,null,null,null,null,"ﾌﾟﾛﾃﾞｭｰｻｰ/"]
[null,null,null,null,"曲名/",null,null,null,null,null,null,null,null,null,null,"作曲/",null,null,null,null,null,null,null,null,null,"作詞/"]
[null,null,null,null,null,"ｵﾘｼﾞﾅﾙ",null,null,"ﾀｲｱｯﾌﾟ/委嘱",null,null,"　",null,null,"PD楽曲",null,"　",null,null,null,"既存楽曲",null,null,"　",null,null,"ﾗｲﾌﾞﾗﾘｰ",null,null,"（会社：            )"]
[null,null,null,null,"契約期間/",null,null,null,null,null,null,null,null,null,null,null,null,null,null,null,null,null,null,null,null,null,"支払い/",null,null,"制作会社",null,null,"広告会社"]
[null,null,null,null,"備考/"]
[null,"その他"]
[null,null,null,null,"　"]
[null,null,null,null,"契約期間/",null,null,null,null,null,null,null,null,null,null,null,null,null,null,null,null,null,null,null,null,null,"支払い/",null,null,"制作会社",null,null,"広告会社"]
[null,null,null,null,"備考/"]
[]
[null,null,null,null,"　"]
[null,null,null,null,"契約期間/",null,null,null,null,null,null,null,null,null,null,null,null,null,null,null,null,null,null,null,null,null,"支払い/",null,null,"制作会社",null,null,"広告会社"]
[null,null,null,null,"備考/"]

{"sheet":"制作仕様書(CM無し)","index":1,"n_rows":113,"n_cols":52,"rows_kept":113,"cut":false,"hidden":false,"merged":[[102,26,102,28],[102,29,102,34],[105,1,112,3],[105,4,105,34],[106,4,106,34],[107,4,107,6],[107,7,107,25],[107,26,107,27],[107,29,107,31],[107,32,107,34],[108,4,108,6],[108,7,108,34],[112,4,112,6],[112,7,112,34],[109,4,109,34],[110,4,110,34],[111,4,111,6],[111,7,111,25],[111,26,111,27],[111,29,111,31],[111,32,111,34],[97,4,97,34],[100,1,104,3],[100,4,100,7],[100,8,100,20],[100,21,100,23],[100,24,100,34],[101,4,101,5],[101,6,101,14],[101,15,101,16],[101,17,101,24],[101,25,101,26],[103,4,103,6],[103,7,103,25],[103,26,103,27],[103,29,103,31],[103,32,103,34],[104,4,104,6],[104,7,104,34],[101,27,101,34],[102,11,102,12],[102,14,102,15],[102,16,102,18],[102,20,102,22],[102,23,102,25],[88,29,88,31],[88,32,88,34],[89,4,89,6],[89,7,89,34],[90,1,99,3],[90,4,90,34],[91,4,91,34],[92,4,92,34],[93,4,93,6],[93,7,93,25],[93,26,93,27],[93,29,93,31],[98,4,98,6],[98,7,98,25],[98,26,98,27],[98,29,98,31],[98,32,98,34],[99,4,99,6],[99,7,99,34],[93,32,93,34],[94,4,94,6],[94,7,94,34],[95,4,95,34],[96,4,96,34],[82,4,82,34],[83,4,83,6],[83,7,83,25],[83,26,83,27],[83,29,83,31],[83,32,83,34],[76,0,76,3],[76,4,76,34],[77,0,77,3],[77,4,77,34],[79,0,112,0],[79,1,79,3],[79,4,79,34],[80,1,89,3],[80,4,80,34],[81,4,81,34],[84,4,84,6],[84,7,84,34],[85,4,85,34],[86,4,86,34],[87,4,87,34],[88,4,88,6],[88,7,88,25],[88,26,88,27],[69,0,74,3],[69,4,70,6],[69,8,69,19],[69,20,70,22],[69,24,69,34],[70,8,70,19],[70,24,70,34],[71,4,72,6],[71,8,71,19],[71,20,72,22],[71,24,71,34],[72,8,72,19],[72,24,72,34],[73,4,74,6],[73,8,73,19],[73,20,74,22],[73,24,73,34],[74,8,74,19],[74,24,74,34],[66,0,66,3],[66,4,66,34],[67,0,67,3],[67,5,67,12],[67,14,67,21],[67,23,67,34],[63,29,64,31],[63,32,64,33],[63,34,64,34],[64,4,64,23],[65,0,65,3],[65,4,65,34],[62,21,62,23],[63,0,64,3],[63,4,63,23],[63,24,64,25],[63,26,64,27],[63,28,64,28],[61,0,61,3],[61,4,61,5],[61,6,61,34],[62,0,62,3],[62,4,62,5],[62,6,62,8],[62,9,62,11],[62,12,62,14],[62,15,62,17],[62,18,62,20],[56,0,57,3],[56,4,56,10],[56,11,56,17],[56,18,57,21],[56,22,56,27],[56,28,56,34],[57,4,57,10],[57,11,57,17],[57,22,57,27],[57,28,57,34],[54,0,55,3],[54,4,54,10],[54,11,54,17],[54,18,55,21],[54,22,55,27],[54,28,54,34],[55,4,55,10],[55,11,55,17],[55,28,55,34],[51,0,52,0],[51,1,51,3],[51,4,51,34],[52,1,52,3],[52,4,52,34],[53,0,53,34],[47,31,47,34],[48,4,49,5],[48,6,49,13],[48,14,49,17],[48,18,49,20],[48,21,49,22],[48,23,49,30],[48,31,49,34],[43,31,44,34],[46,0,49,3],[46,4,46,20],[46,21,46,34],[47,4,47,5],[47,6,47,13],[47,14,47,17],[47,18,47,20],[47,21,47,22],[47,23,47,30],[43,4,44,5],[43,6,44,13],[43,14,44,17],[43,18,44,20],[43,21,44,22],[43,23,44,30],[41,0,44,3],[41,4,41,20],[41,21,41,34],[42,4,42,5],[42,6,42,13],[42,14,42,17],[42,18,42,20],[42,21,42,22],[42,23,42,30],[42,31,42,34],[36,31,37,34],[38,4,39,5],[38,6,39,13],[38,14,39,17],[38,18,39,20],[38,21,39,22],[38,23,39,30],[38,31,39,34],[36,4,37,5],[36,6,37,13],[36,14,37,17],[36,18,37,20],[36,21,37,22],[36,23,37,30],[34,0,39,3],[34,4,34,20],[34,21,34,34],[35,4,35,5],[35,6,35,13],[35,14,35,17],[35,18,35,20],[35,21,35,22],[35,23,35,30],[35,31,35,34],[29,0,29,34],[30,0,32,3],[30,4,30,34],[31,4,31,34],[32,4,32,34],[33,0,33,34],[28,0,28,3],[28,9,28,12],[28,13,28,16],[28,18,28,21],[28,22,28,25],[28,31,28,34],[19,17,19,19],[19,22,19,23],[19,26,19,29],[19,32,19,34],[20,2,20,14],[24,29,24,34],[25,0,27,3],[26,18,26,21],[27,17,27,22],[27,23,27,28],[27,29,27,34],[22,2,22,14],[22,17,22,19],[22,22,22,23],[22,26,22,29],[22,32,22,34],[24,0,24,3],[24,4,24,10],[24,12,24,17],[24,18,24,21],[24,22,24,27],[16,0,16,3],[16,4,16,16],[16,17,16,20],[16,21,16,34],[18,0,22,1],[18,2,18,14],[18,15,22,16],[18,17,18,19],[18,20,22,21],[18,22,18,23],[20,17,20,19],[20,22,20,23],[20,26,20,29],[20,32,20,34],[21,2,21,14],[21,17,21,19],[21,22,21,23],[21,26,21,29],[21,32,21,34],[18,24,22,25],[18,26,18,29],[18,30,22,31],[18,32,18,34],[19,2,19,14],[13,0,14,3],[13,4,13,16],[13,21,13,23],[13,24,14,34],[14,4,14,16],[14,21,14,23],[10,15,10,16],[10,21,10,23],[10,24,10,34],[11,21,12,23],[11,24,12,34],[12,0,12,3],[12,4,12,16],[7,0,7,3],[7,4,7,16],[7,24,9,34],[9,0,9,3],[9,4,9,16],[10,0,10,3],[10,4,10,6],[10,7,10,8],[10,10,10,12],[10,13,10,14],[5,0,5,3],[5,4,5,16],[5,21,5,23],[5,24,6,34],[6,0,6,3],[6,4,6,16],[1,0,1,12],[1,13,1,26],[1,28,1,34],[2,0,2,34],[3,0,3,5],[3,7,3,11],[3,14,3,15],[3,26,3,28],[3,29,3,34]]}
[]
["映像制作仕様書　[1次]",null,null,null,null,null,null,null,null,null,null,null,null,null,null,null,null,null,null,null,null,null,null,null,null,null,null,"No."]
["　　※この仕様書は、2018年6月1日以降に受注する映像制作案件において適用する「新取引」受注形態の考え方に基づくものです。\n　　 「新取引」では制作会社は初号納品までを請負うことが前提となり、ｵﾝｴｱﾌｫｰﾏｯﾄ作成以降の作業は別途「搬入ｻﾎﾟｰﾄ見積」による「ｵﾌﾟｼｮﾝ作業」となります。"]
[null,null,null,null,null,null,"[",null,null,null,null,null,"局","]","御中",null,null,null,null,null,null,null,null,null,null,null,"作成日："]
[]
["制作責任者",null,null,null,null,null,null,null,null,null,null,null,null,null,null,null,null,null,null,null,null,"制作会社：",null,null,null,null,null,null,null,null,null,null,null,null,null,null,null,null,null,null,"\n"]
["担当営業"]
["担当ＣＤ"]
[]
["制作見積額"]
["ﾌﾟﾛﾀﾞｸｼｮﾝ管理費",null,null,null,"　",null,null,null,null,"%","　",null,null,null,null,null,null,null,null,null,null,"担当部署："]
[null,null,null,null,null,null,null,null,null,null,null,null,null,null,null,null,null,null,null,null,null," 連絡先："]
["制作物"]
["変更の概要\n(2次確認書以降)",null,null,null,null,null,null,null,null,null,null,null,null,null,null,null,null,null,null,null,null," 担当者："]
[]
[]
["広告主",null,null,null,null,null,null,null,null,null,null,null,null,null,null,null,null,"商品名"]
[]
["題名",null,null,null,null,null,null,null,null,null,null,null,null,null,null,"秒数",null,null,null,null,"篇数\n(ﾀｲﾌﾟ数)",null,null,null,"用途\n種別",null,null,null,null,null,"映像\nｻｲｽﾞ"]
[]
[]
[]
[null,null,null,null,null,null,null,null,null,null,null,null,null,null,null,null,null,null,null,null,null,null,null,null,null,null,"　"]
[]
["制作期間",null,null,null,null,null,null,null,null,null,null,"～",null,null,null,null,null,null,"使用期間",null,null,null,null,null,null,null,null,null,"～"]
["使用媒体/\n用途",null,null,null,null,"地上波",null,null,null,"BS",null,null,null,"CS/CATV",null,null,null,null,"ﾗｼﾞｵ",null,null,null,"OOH",null,null,null,null,"ﾄﾚｲﾝﾁｬﾝﾈﾙ"]
[null,null,null,null,null,"店頭",null,null,null,"ｲﾍﾞﾝﾄ",null,null,null,"機内ﾋﾞｼﾞｮﾝ",null,null,null,null,"ｼﾈｱﾄﾞ",null,null,null,"ｵｳﾝﾄﾞﾒﾃﾞｨｱ",null,null,null,null,"ﾊﾞﾅｰ動画"]
[null,null,null,null,null,"SNS",null,null,null,"無料配信動画",null,null,null,null,null,"その他",null,"(広告賞)",null,null,null,null,null,"(　　　　　)",null,null,null,null,null,"(　　　　　)"]
["使用地域",null,null,null,null,"国内（全国）",null,null,null,"国内（地域）/",null,null,null,"　",null,null,null,null,"海外（地域）/",null,null,null,null,null,null,null,null,"WEB",null,null,"他/",null,null,null,null,null,"「制作見積」:「初号原版作成費(初号ﾌｫｰﾏｯﾄ作成費込)」「初号試写用素材作成費」迄を計上。","「制作見積」:「初号試写用素材作成費」迄を計上。(初号ﾌｫｰﾏｯﾄ作成費は編集費に含む)　※初号原版作成なし",null,null,null,null,null,null,null,null,null,null,"「搬入ｻﾎﾟｰﾄ見積(ｵﾌﾟｼｮﾝ)」:なし","「搬入ｻﾎﾟｰﾄ見積」:「○○搬入用原版作成費(搬入ﾌｫｰﾏｯﾄ作成費込)」を計上。","「搬入ｻﾎﾟｰﾄ見積」:「○○搬入用ﾌﾟﾘﾝﾄﾏｽﾀｰ作成費(搬入用ﾌｫｰﾏｯﾄ作成費込)」「○○搬入用ﾌﾟﾘﾝﾄ費」を計上。","「搬入ｻﾎﾟｰﾄ見積」:「○○搬入用ﾌｫｰﾏｯﾄ作成費」「搬入用ﾌﾟﾘﾝﾄ費」を計上。"]
[null,null,null,null,null,null,null,null,null,null,null,null,null,null,null,null,null,null,null,null,null,null,null,null,null,null,null,null,null,null,null,null,null,null,null,null,"・原版の納品までを弊社の責任範囲とします。御社による検収完了以降、弊社は一切の責任を免責されます。\n・検収で瑕疵が指摘された場合、弊社は営業時間内において速やかに修正・差替えの対応を致します。\n・検収の完了はﾒｰﾙ等で速やかに弊社に通知されるものとします。検収完了通知がない場合でも、納品物が搬入素材作成業務に使用された段階で検収完了となります。","・原版の納品までを弊社の責任範囲とします。御社による検収完了以降、弊社は一切の責任を免責されます。\n・検収で瑕疵が指摘された場合、弊社は営業時間内において速やかに修正・差替えの対応を致します。\n・検収の完了はﾒｰﾙ等で速やかに弊社に通知されるものとします。検収完了通知がない場合でも、納品物が搬入素材作成業務に使用された段階で検収完了となります。\n※[弊社物納ﾌﾟﾘﾝﾄがある場合]：弊社作成の物納ﾌﾟﾘﾝﾄ素材の搬入後に瑕疵指摘がありそれが弊社業務に起因するものである場合は、弊社は営業時間内において\n　 速やかに追加費用なしで修正・差替え対応を致します。また、場合により最大で再搬入費用の半額を分担するまでの責任を負います。\n　 ただし、未知の問題に起因する場合は、弊社はこの責任を担いません。","※弊社作成の物納ﾌﾟﾘﾝﾄ素材の搬入後に瑕疵指摘がありそれが弊社業務に起因するものである場合は、弊社は営業時間内において速やかに追加費用なしで修正・\n　 差替え対応を致します。また、場合により最大で再搬入費用の半額を分担するまでの責任を負います。\n　 ただし、未知の問題に起因する場合は、弊社はこの責任を担いません。"]
["制作会社\n業務範囲\n(ｵﾌﾟｼｮﾝ指定)",null,null,null,null,null,null,null,null,null,null,null,null,null,null,null,null,null,null,null,null,null,null,null,null,null,null,null,null,null,null,null,null,null,null,null,"保管せず","初号納品日より3ヶ月間保管(有償/制作費扱い)\n※保管延長する場合は保管期間満了前の要請が必須","初号納品日より1年間保管(有償/制作費扱い)\n※保管延長する場合は保管期間満了前の要請が必須","初号納品日より2年間保管(有償/制作費扱い)\n※保管延長する場合は保管期間満了前の要請が必須","初号納品日より○年間保管(有償/制作費扱い)\n※保管延長する場合は保管期間満了前の要請が必須","-","　","(以下は「納品」の場合のﾌﾟﾙﾀﾞｳﾝ要素)","初号納品後○○に納品(梱包・配送料等は有償/制作費扱い)"]
[null,null,null,null,null,null,null,null,null,null,null,null,null,null,null,null,null,null,null,null,null,null,null,null,null,null,null,null,null,null,null,null,null,null,null,null,"初号納品後速やかに廃棄(有償/制作費扱い)","保管期間満了時に自動廃棄(費用は保管費に含む)","-","　","(以下は「納品」の場合のﾌﾟﾙﾀﾞｳﾝ要素)","初号納品後○○に納品(梱包・配送料等は有償/制作費扱い)"]
[]
["■制作会社納品物"]
["〈制作見積内〉\n初号の納品物\n(初号ﾌｫｰﾏｯﾄ)",null,null,null,"〈初号原版〉TV-CM OA用途となり得る初号ﾌｫｰﾏｯﾄ納品原版(50Mbps以上)",null,null,null,null,null,null,null,null,null,null,null,null,null,null,null,null,"TV-CM OA用途以外の初号ﾌｫｰﾏｯﾄ納品素材"]
[null,null,null,null,"有無",null,"納品形態",null,null,null,null,null,null,null,"使用用途",null,null,null,"保管者/保管期間",null,null,"有無",null,"納品形態",null,null,null,null,null,null,null,"使用用途"]
[]
[]
[null,null,null,null,"　",null,"　",null,null,null,null,null,null,null,"　",null,null,null,"　",null,null,"　",null,"　",null,null,null,null,null,null,null,"　"]
[]
[]
["〈制作見積外\n  ｵﾌﾟｼｮﾝ〉\nTV-CM OA用途の\n納品物\n(OAﾌｫｰﾏｯﾄ)",null,null,null,"〈OA原版〉TV-CM OA用途のOAﾌｫｰﾏｯﾄ納品原版(50Mbps以上)",null,null,null,null,null,null,null,null,null,null,null,null,null,null,null,null,"〈TV-CM物納OAﾌﾟﾘﾝﾄ〉"]
[null,null,null,null,"有無",null,"納品形態",null,null,null,null,null,null,null,"使用用途",null,null,null,"保管者/保管期間",null,null,"有無",null,"納品形態",null,null,null,null,null,null,null,"使用用途"]
[]
[]
[]
["〈制作見積外\n  ｵﾌﾟｼｮﾝ〉\nTV-CM以外の\nｵﾌﾟｼｮﾝ納品物",null,null,null,"〈特定媒体用原版〉TV-CM以外の特定ﾌｫｰﾏｯﾄ納品原版(50Mbps以上)",null,null,null,null,null,null,null,null,null,null,null,null,null,null,null,null,"TV-CM以外の特定媒体用ﾌﾟﾘﾝﾄ納品物"]
[null,null,null,null,"有無",null,"納品形態",null,null,null,null,null,null,null,"使用用途",null,null,null,"保管者/保管期間",null,null,"有無",null,"納品形態",null,null,null,null,null,null,null,"使用用途"]
[]
[]
[]
["責任分界","要権利処理外注先関連"]
[null,"搬入ｻﾎﾟｰﾄ\n関連"]
["■TV-CMｵﾝﾗｲﾝ運用関連"]
["広告主/広告会社\n内容確認担当者",null,null,null,null,null,null,null,null,null,null,null,null,null,null,null,null,null,"ｵﾝﾗｲﾝ\n素材搬入事業者"]
[]
["制作会社\n内容確認担当者",null,null,null,null,null,null,null,null,null,null,null,null,null,null,null,null,null,"制作会社\n作業担当者"]
[]
[]
[]
[]
["指定ｽﾀｯﾌ有無"]
["撮影有無",null,null,null,null,null,"撮影地域",null,null,null,null,null,"撮影種別",null,null,null,null,null,"音声種別"]
["撮影日数\n撮影場所",null,null,null,null,null,null,null,null,null,null,null,null,null,null,null,null,null,null,null,null,null,null,null,"撮影日\n合計",null,null,null,"日","準備/移動/天候予備等\n合計",null,null,null,null,"日"]
[]
["天候予備\nの考え方"]
["追加ﾘｽｸ対応の\n可能性"]
["警備関連",null,null,null,null,"制作会社が警備会社に支払う",null,null,null,null,null,null,null,null,"広告会社が警備会社に支払う",null,null,null,null,null,null,null,null,"警備の手配は必要なし"]
[]
["保管/廃棄\nなど",null,null,null,"小道具",null,null,"保管",null,null,null,null,null,null,null,null,null,null,null,null,"衣装",null,null,"保管"]
[null,null,null,null,null,null,null,"廃棄",null,null,null,null,null,null,null,null,null,null,null,null,null,null,null,"廃棄"]
[null,null,null,null,"美術用作成物",null,null,"保管",null,null,null,null,null,null,null,null,null,null,null,null,"特別\n（　　　）",null,null,"保管"]
[null,null,null,null,null,null,null,"廃棄",null,null,null,null,null,null,null,null,null,null,null,null,null,null,null,"廃棄"]
[null,null,null,null,"資料",null,null,"保管",null,null,null,null,null,null,null,null,null,null,null,null,"素材",null,null,"保管"]
[null,null,null,null,null,null,null,"廃棄",null,null,null,null,null,null,null,null,null,null,null,null,null,null,null,"廃棄"]
[]
["割増単価規定"]
["その他\n特記事項"]
[]
["権　利　処　理","競合拘束条件"]
[null,"出演者/\nﾅﾚｰﾀｰ"]
[]
[]
[null,null,null,null,"契約期間/",null,null,null,null,null,null,null,null,null,null,null,null,null,null,null,null,null,null,null,null,null,"支払い/",null,null,"制作会社",null,null,"広告会社"]
[null,null,null,null,"備考/",null,null,"　"]
[]
[]
[]
[null,null,null,null,"契約期間/",null,null,null,null,null,null,null,null,null,null,null,null,null,null,null,null,null,null,null,null,null,"支払い/",null,null,"制作会社",null,null,"広告会社"]
[null,null,null,null,"備考/"]
[null,"映像素材"]
[]
[null,null,null,null,"　"]
[null,null,null,null,"契約期間/",null,null,null,null,null,null,null,null,null,null,null,null,null,null,null,null,null,null,null,null,null,"支払い/",null,null,"制作会社",null,null,"広告会社"]
[null,null,null,null,"備考/"]
[]
[]
[null,null,null,null,"　"]
[null,null,null,null,"契約期間/",null,null,null,null,null,null,null,null,null,null,null,null,null,null,null,null,null,null,null,null,null,"支払い/",null,null,"制作会社",null,null,"広告会社"]
[null,null,null,null,"備考/"]
[null,"音楽",null,null,"音楽ﾌﾟﾛﾀﾞｸｼｮﾝ/",null,null,null,null,null,null,null,null,null,null,null,null,null,null,null,null,"ﾌﾟﾛﾃﾞｭｰｻｰ/"]
[null,null,null,null,"曲名/",null,null,null,null,null,null,null,null,null,null,"作曲/",null,null,null,null,null,null,null,null,null,"作詞/"]
[null,null,null,null,null,"ｵﾘｼﾞﾅﾙ",null,null,"ﾀｲｱｯﾌﾟ/委嘱",null,null,"　",null,null,"PD楽曲",null,"　",null,null,null,"既存楽曲",null,null,"　",null,null,"ﾗｲﾌﾞﾗﾘｰ",null,null,"（会社：            )"]
[null,null,null,null,"契約期間/",null,null,null,null,null,null,null,null,null,null,null,null,null,null,null,null,null,null,null,null,null,"支払い/",null,null,"制作会社",null,null,"広告会社"]
[null,null,null,null,"備考/",null,null,"※ 詳細は制作費見積書内訳書(6)を参照"]
[null,"その他"]
[null,null,null,null,"　"]
[null,null,null,null,"契約期間/",null,null,null,null,null,null,null,null,null,null,null,null,null,null,null,null,null,null,null,null,null,"支払い/",null,null,"制作会社",null,null,"広告会社"]
[null,null,null,null,"備考/"]
[]
[null,null,null,null,"　"]
[null,null,null,null,"契約期間/",null,null,null,null,null,null,null,null,null,null,null,null,null,null,null,null,null,null,null,null,null,"支払い/",null,null,"制作会社",null,null,"広告会社"]
[null,null,null,null,"備考/"]

{"sheet":"【提出用】TVCM制作見積確認スケジュール(制作)","index":2,"n_rows":79,"n_cols":25,"rows_kept":79,"cut":false,"hidden":false,"merged":[[9,4,9,16],[10,4,10,16],[11,4,11,16],[12,4,12,16],[4,4,4,16],[5,4,5,16],[6,4,6,16],[7,4,7,16],[8,4,8,16],[1,19,1,22],[2,1,2,4],[2,5,2,6],[2,18,2,22],[1,1,1,7],[1,9,2,9],[1,10,2,17],[38,17,38,22],[17,4,17,16],[30,4,30,16],[31,4,31,16],[32,4,32,16],[23,4,23,16],[33,4,33,16],[34,4,34,16],[35,4,35,16],[36,1,36,14],[38,1,38,5],[38,7,38,8],[38,9,38,11],[38,12,38,16],[13,4,13,16],[14,4,14,16],[15,4,15,16],[28,4,28,16],[29,4,29,16],[18,4,18,16],[19,4,19,16],[20,4,20,16],[21,4,21,16],[22,4,22,16],[16,4,16,16],[24,4,24,16],[25,4,25,16],[26,4,26,16],[27,4,27,16],[39,1,39,5],[39,7,39,8],[39,9,39,11],[42,1,42,22],[40,1,40,5],[40,7,40,8],[40,9,40,11],[40,12,40,16],[40,17,40,22],[41,1,41,5],[41,7,41,8],[41,9,41,11],[41,12,41,16],[41,17,41,22],[39,12,39,16],[39,17,39,22]]}
[]
[null,"ＴＶＣＭ　制作確認スケジュール　[1次]",null,null,null,null,null,null,null,"題名",null,null,null,null,null,null,null,null,"No."]
[null,"スケジュール･種別",null,null,null,"ＴＶ-ＣＭ制作",null,null,null,null,null,null,null,null,null,null,null,null,{"$f":"TODAY()","v":"2018-05-22"}]
[]
[null,"月","日","曜","内　容",null,null,null,null,null,null,null,null,null,null,null,null,"P1","PM1","PA1","PA2","PA3","PA4",null,"【かんたんガイド・使用上の注意】"]
[null,"2018-06-01",{"$f":"B6","v":"2018-06-01"},{"$f":"get_aweekday()","v":{"$error":"#NAME?"}},null,null,null,null,null,null,null,null,null,null,null,null,null,{"$f":"mod_manhour_cal()","v":{"$error":"#NAME?"}},{"$error":"#NAME?"},{"$error":"#NAME?"},{"$error":"#NAME?"},{"$error":"#NAME?"},{"$error":"#NAME?"},null,"◎このエクセルワークシートは、マクロの設定された特殊なものです。"]
[null,{"$f":"IF(C7=\"\",\"\",IF(DAY(C7)=1,C7,\"\"))","v":""},{"$f":"C6+1","v":"2018-06-02"},{"$f":"get_aweekday()","v":{"$error":"#NAME?"}},null,null,null,null,null,null,null,null,null,null,null,null,null,{"$f":"mod_manhour_cal()","v":{"$error":"#NAME?"}},{"$error":"#NAME?"},{"$error":"#NAME?"},{"$error":"#NAME?"},{"$error":"#NAME?"},{"$error":"#NAME?"},null,"\n　必ずしも通常のワークシートと同様の使用感とはなっていないことに留意し、下記に沿って使用してください。"]
[null,{"$f":"IF(C8=\"\",\"\",IF(DAY(C8)=1,C8,\"\"))","v":""},{"$f":"C7+1","v":"2018-06-03"},{"$f":"get_aweekday()","v":{"$error":"#NAME?"}},null,null,null,null,null,null,null,null,null,null,null,null,null,{"$f":"mod_manhour_cal()","v":{"$error":"#NAME?"}},{"$error":"#NAME?"},{"$error":"#NAME?"},{"$error":"#NAME?"},{"$error":"#NAME?"},{"$error":"#NAME?"},null,"◇入力したいスケジュール上の内容セルを選択して、「内容リスト」の項目をダブルクリックすると、その文字列が入力でき、"]
[null,{"$f":"IF(C9=\"\",\"\",IF(DAY(C9)=1,C9,\"\"))","v":""},"2018-06-04",{"$error":"#NAME?"},null,null,null,null,null,null,null,null,null,null,null,null,null,{"$f":"mod_manhour_cal()","v":{"$error":"#NAME?"}},{"$error":"#NAME?"},{"$error":"#NAME?"},{"$error":"#NAME?"},{"$error":"#NAME?"},{"$error":"#NAME?"},null,"　 別シート「内容リスト設定(制作)」で設定した通りの「工数」が自動入力され、ページ最下部に「累計」が表示されます。"]
[null,"","2018-06-05",{"$error":"#NAME?"},null,null,null,null,null,null,null,null,null,null,null,null,null,{"$f":"mod_manhour_cal()","v":{"$error":"#NAME?"}},{"$error":"#NAME?"},{"$error":"#NAME?"},{"$error":"#NAME?"},{"$error":"#NAME?"},{"$error":"#NAME?"},null,"◇スケジュール「内容」欄の工数自動入力対象となる「内容リスト」の単位は「、」で区切られるものと設定されています。"]
[null,"","2018-06-06",{"$error":"#NAME?"},null,null,null,null,null,null,null,null,null,null,null,null,null,{"$f":"mod_manhour_cal()","v":{"$error":"#NAME?"}},{"$error":"#NAME?"},{"$error":"#NAME?"},{"$error":"#NAME?"},{"$error":"#NAME?"},{"$error":"#NAME?"},null,"◇スケジュールページの追加や削除は、全て「内容リスト」のボタンから行います。他のやり方はできません。しないでください。"]
[null,"","2018-06-07",{"$error":"#NAME?"},null,null,null,null,null,null,null,null,null,null,null,null,null,{"$f":"mod_manhour_cal()","v":{"$error":"#NAME?"}},{"$error":"#NAME?"},{"$error":"#NAME?"},{"$error":"#NAME?"},{"$error":"#NAME?"},{"$error":"#NAME?"},null,"◇P1、PM1、PA1等「工数欄」の追加や削除も全て「内容リスト」のボタンから行います。"]
[null,"","2018-06-08",{"$error":"#NAME?"},null,null,null,null,null,null,null,null,null,null,null,null,null,{"$f":"mod_manhour_cal()","v":{"$error":"#NAME?"}},{"$error":"#NAME?"},{"$error":"#NAME?"},{"$error":"#NAME?"},{"$error":"#NAME?"},{"$error":"#NAME?"},null,"◇別シート「内容リスト設定(制作)」で、「内容リスト」の文字列、「工数」、「P1」等の名称は、自由に設定できます。"]
[null,"","2018-06-09",{"$error":"#NAME?"},null,null,null,null,null,null,null,null,null,null,null,null,null,{"$f":"mod_manhour_cal()","v":{"$error":"#NAME?"}},{"$error":"#NAME?"},{"$error":"#NAME?"},{"$error":"#NAME?"},{"$error":"#NAME?"},{"$error":"#NAME?"},null,"◇土日祝の工数倍率もこのシートで設定できます。"]
[null,"","2018-06-10",{"$error":"#NAME?"},null,null,null,null,null,null,null,null,null,null,null,null,null,{"$f":"mod_manhour_cal()","v":{"$error":"#NAME?"}},{"$error":"#NAME?"},{"$error":"#NAME?"},{"$error":"#NAME?"},{"$error":"#NAME?"},{"$error":"#NAME?"},null,"◇スケジュールの日付(月セル、日セル、曜セル)は、全て「B6セルダブルクリック→カレンダーから選択」での入力となります。"]
[null,"","2018-06-11",{"$error":"#NAME?"},null,null,null,null,null,null,null,null,null,null,null,null,null,{"$f":"mod_manhour_cal()","v":{"$error":"#NAME?"}},{"$error":"#NAME?"},{"$error":"#NAME?"},{"$error":"#NAME?"},{"$error":"#NAME?"},{"$error":"#NAME?"},null,"◆月セル、日セル、曜セルへの直接入力はできません。これらのセルは選択もできません。"]
[null,"","2018-06-12",{"$error":"#NAME?"},null,null,null,null,null,null,null,null,null,null,null,null,null,{"$f":"mod_manhour_cal()","v":{"$error":"#NAME?"}},{"$error":"#NAME?"},{"$error":"#NAME?"},{"$error":"#NAME?"},{"$error":"#NAME?"},{"$error":"#NAME?"},null,"◆内容セルには全てマクロが設定されていますので、「前回入力取り消し」は一切できません。"]
[null,"","2018-06-13",{"$error":"#NAME?"},null,null,null,null,null,null,null,null,null,null,null,null,null,{"$f":"mod_manhour_cal()","v":{"$error":"#NAME?"}},{"$error":"#NAME?"},{"$error":"#NAME?"},{"$error":"#NAME?"},{"$error":"#NAME?"},{"$error":"#NAME?"},null,"◆列や行の消去はできません。消去しようとしないでください。"]
[null,"","2018-06-14",{"$error":"#NAME?"},null,null,null,null,null,null,null,null,null,null,null,null,null,{"$f":"mod_manhour_cal()","v":{"$error":"#NAME?"}},{"$error":"#NAME?"},{"$error":"#NAME?"},{"$error":"#NAME?"},{"$error":"#NAME?"},{"$error":"#NAME?"},null,"◇「内容リスト」からダブルクリック入力した後、工数を変更したい場合は、工数セルに直接手入力してください。"]
[null,"","2018-06-15",{"$error":"#NAME?"},null,null,null,null,null,null,null,null,null,null,null,null,null,{"$f":"mod_manhour_cal()","v":{"$error":"#NAME?"}},{"$error":"#NAME?"},{"$error":"#NAME?"},{"$error":"#NAME?"},{"$error":"#NAME?"},{"$error":"#NAME?"},null,"◆ただし、内容セルに追加手入力すると、工数は自動計算にリセットされますので、ご注意ください。"]
[null,"","2018-06-16",{"$error":"#NAME?"},null,null,null,null,null,null,null,null,null,null,null,null,null,{"$f":"mod_manhour_cal()","v":{"$error":"#NAME?"}},{"$error":"#NAME?"},{"$error":"#NAME?"},{"$error":"#NAME?"},{"$error":"#NAME?"},{"$error":"#NAME?"},null,"◆従って、内容セルに手入力する場合は、そのセルへの入力を全て完成させてから、工数を手入力する必要があります。"]
[null,"","2018-06-17",{"$error":"#NAME?"},null,null,null,null,null,null,null,null,null,null,null,null,null,{"$f":"mod_manhour_cal()","v":{"$error":"#NAME?"}},{"$error":"#NAME?"},{"$error":"#NAME?"},{"$error":"#NAME?"},{"$error":"#NAME?"},{"$error":"#NAME?"},null,"◆そのようにして完成させた内容セルで追加入力やダブルクリックをすると、工数はリセットされますので、ご注意ください。"]
[null,"","2018-06-18",{"$error":"#NAME?"},null,null,null,null,null,null,null,null,null,null,null,null,null,{"$f":"mod_manhour_cal()","v":{"$error":"#NAME?"}},{"$error":"#NAME?"},{"$error":"#NAME?"},{"$error":"#NAME?"},{"$error":"#NAME?"},{"$error":"#NAME?"},null,"◇単一の内容セルから別の単一内容セルへの「コピペ」は可能です。"]
[null,"","2018-06-19",{"$error":"#NAME?"},null,null,null,null,null,null,null,null,null,null,null,null,null,{"$f":"mod_manhour_cal()","v":{"$error":"#NAME?"}},{"$error":"#NAME?"},{"$error":"#NAME?"},{"$error":"#NAME?"},{"$error":"#NAME?"},{"$error":"#NAME?"},null,"◆ただし、セルの「カット」を行うと不具合が起きますので、「セルカット」はしないでください。"]
[null,"","2018-06-20",{"$error":"#NAME?"},null,null,null,null,null,null,null,null,null,null,null,null,null,{"$f":"mod_manhour_cal()","v":{"$error":"#NAME?"}},{"$error":"#NAME?"},{"$error":"#NAME?"},{"$error":"#NAME?"},{"$error":"#NAME?"},{"$error":"#NAME?"},null,"◇別シート「内容リスト設定」の【スケジュール作成例(制作)】から内容セルへは、複数選択セルのコピペが可能です。"]
[null,"","2018-06-21",{"$error":"#NAME?"},null,null,null,null,null,null,null,null,null,null,null,null,null,{"$f":"mod_manhour_cal()","v":{"$error":"#NAME?"}},{"$error":"#NAME?"},{"$error":"#NAME?"},{"$error":"#NAME?"},{"$error":"#NAME?"},{"$error":"#NAME?"},null,"◆しかし複数の内容セルのコピペをすると不具合が起きますので行わないでください。"]
[null,"","2018-06-22",{"$error":"#NAME?"},null,null,null,null,null,null,null,null,null,null,null,null,null,{"$f":"mod_manhour_cal()","v":{"$error":"#NAME?"}},{"$error":"#NAME?"},{"$error":"#NAME?"},{"$error":"#NAME?"},{"$error":"#NAME?"},{"$error":"#NAME?"},null,"◇土日祝セルの「グレイ」は、自動計算で色指定していますので、平日の白セルから単一セルコピペしてもグレイは保持されます。"]
[null,"","2018-06-23",{"$error":"#NAME?"},null,null,null,null,null,null,null,null,null,null,null,null,null,{"$f":"mod_manhour_cal()","v":{"$error":"#NAME?"}},{"$error":"#NAME?"},{"$error":"#NAME?"},{"$error":"#NAME?"},{"$error":"#NAME?"},{"$error":"#NAME?"},null,"　 土日祝のグレイセルから平日セルに単一セルコピペしても、同様に白は保持されます。"]
[null,"","2018-06-24",{"$error":"#NAME?"},null,null,null,null,null,null,null,null,null,null,null,null,null,{"$f":"mod_manhour_cal()","v":{"$error":"#NAME?"}},{"$error":"#NAME?"},{"$error":"#NAME?"},{"$error":"#NAME?"},{"$error":"#NAME?"},{"$error":"#NAME?"},null,"◇スケジュール表の開始日を任意の月の「1日」とすると、1ページにつきちょうど1ヶ月のスケジュールとすることができます。"]
[null,"","2018-06-25",{"$error":"#NAME?"},null,null,null,null,null,null,null,null,null,null,null,null,null,{"$f":"mod_manhour_cal()","v":{"$error":"#NAME?"}},{"$error":"#NAME?"},{"$error":"#NAME?"},{"$error":"#NAME?"},{"$error":"#NAME?"},{"$error":"#NAME?"},null,"◆列や行の消去はできません。消去しようとしないでください。"]
[null,"","2018-06-26",{"$error":"#NAME?"},null,null,null,null,null,null,null,null,null,null,null,null,null,{"$f":"mod_manhour_cal()","v":{"$error":"#NAME?"}},{"$error":"#NAME?"},{"$error":"#NAME?"},{"$error":"#NAME?"},{"$error":"#NAME?"},{"$error":"#NAME?"},null,"※(2018.5.21)不具合報告…調査中(使用PCに「Dropbox」等がインストールされている場合に起きる?)／次Ver.で改修予定。"]
[null,"","2018-06-27",{"$error":"#NAME?"},null,null,null,null,null,null,null,null,null,null,null,null,null,{"$f":"mod_manhour_cal()","v":{"$error":"#NAME?"}},{"$error":"#NAME?"},{"$error":"#NAME?"},{"$error":"#NAME?"},{"$error":"#NAME?"},{"$error":"#NAME?"},null,"　「パスワード画面が表示されることがある。」→キャンセルを数回押すと消える。"]
[null,"","2018-06-28",{"$error":"#NAME?"},null,null,null,null,null,null,null,null,null,null,null,null,null,{"$f":"mod_manhour_cal()","v":{"$error":"#NAME?"}},{"$error":"#NAME?"},{"$error":"#NAME?"},{"$error":"#NAME?"},{"$error":"#NAME?"},{"$error":"#NAME?"}]
[null,"",{"$f":"IF(AND(DAY(C6)=1,IF(C33=\"\",1,DAY(C33+1)=1)),\"\",C33+1)","v":"2018-06-29"},{"$error":"#NAME?"},null,null,null,null,null,null,null,null,null,null,null,null,null,{"$f":"mod_manhour_cal()","v":{"$error":"#NAME?"}},{"$error":"#NAME?"},{"$error":"#NAME?"},{"$error":"#NAME?"},{"$error":"#NAME?"},{"$error":"#NAME?"}]
[null,"",{"$f":"IF(AND(DAY(C6)=1,IF(C34=\"\",1,DAY(C34+1)=1)),\"\",C34+1)","v":"2018-06-30"},{"$error":"#NAME?"},null,null,null,null,null,null,null,null,null,null,null,null,null,{"$f":"mod_manhour_cal()","v":{"$error":"#NAME?"}},{"$error":"#NAME?"},{"$error":"#NAME?"},{"$error":"#NAME?"},{"$error":"#NAME?"},{"$error":"#NAME?"}]
[null,{"$f":"IF(C36=\"\",\"\",IF(DAY(C36)=1,C36,\"\"))","v":""},{"$f":"IF(C35=\"\",\"\",IF(DAY(C35+1)=1,\"\",C35+1))","v":""},{"$error":"#NAME?"},null,null,null,null,null,null,null,null,null,null,null,null,null,{"$f":"mod_manhour_cal()","v":{"$error":"#NAME?"}},{"$error":"#NAME?"},{"$error":"#NAME?"},{"$error":"#NAME?"},{"$error":"#NAME?"},{"$error":"#NAME?"}]
[null,{"$f":"mod_manhour_com()","v":{"$error":"#NAME?"}},null,null,null,null,null,null,null,null,null,null,null,null,null,null,"累計",{"$f":"SUM(R6:R36)","v":{"$error":"#NAME?"}},{"$f":"SUM(S6:S36)","v":{"$error":"#NAME?"}},{"$error":"#NAME?"},{"$error":"#NAME?"},{"$error":"#NAME?"},{"$error":"#NAME?"}]
[]
[]
[]
[]
[]
[null,1]
[]
[]
[]
[]
[]
[{"$f":"mod_manhour_cal()","v":{"$error":"#NAME?"}}]
[{"$error":"#NAME?"}]
[{"$error":"#NAME?"}]
[{"$error":"#NAME?"}]
[{"$error":"#NAME?"}]
[{"$error":"#NAME?"}]
[{"$error":"#NAME?"}]
[{"$error":"#NAME?"}]
[{"$error":"#NAME?"}]
[{"$error":"#NAME?"}]
[{"$error":"#NAME?"}]
[{"$error":"#NAME?"}]
[{"$error":"#NAME?"}]
[{"$error":"#NAME?"}]
[{"$error":"#NAME?"}]
[{"$error":"#NAME?"}]
[{"$error":"#NAME?"}]
[{"$error":"#NAME?"}]
[{"$error":"#NAME?"}]
[{"$error":"#NAME?"}]
[{"$error":"#NAME?"}]
[{"$error":"#NAME?"}]
[{"$error":"#NAME?"}]
[{"$error":"#NAME?"}]
[{"$error":"#NAME?"}]
[{"$error":"#NAME?"}]
[{"$error":"#NAME?"}]
[{"$error":"#NAME?"}]
[{"$error":"#NAME?"}]
[{"$error":"#NAME?"}]
[{"$error":"#NAME?"}]

{"sheet":"内容リスト設定(制作)","index":3,"n_rows":59,"n_cols":19,"rows_kept":59,"cut":false,"hidden":false,"merged":[[55,16,55,18],[6,16,6,18],[19,16,19,28],[20,16,20,28],[21,16,21,28],[22,16,22,28],[23,16,23,28],[24,16,24,28],[25,16,25,28],[26,16,26,28],[27,16,27,28],[28,16,28,28],[29,16,29,28],[30,16,30,28],[31,16,31,28],[48,16,48,28],[39,16,39,28],[40,16,40,28],[41,16,41,28],[32,16,32,28],[33,16,33,28],[34,16,34,28],[35,16,35,28],[36,16,36,28],[54,16,54,28],[7,16,7,28],[8,16,8,28],[9,16,9,28],[10,16,10,28],[11,16,11,28],[12,16,12,28],[13,16,13,28],[14,16,14,28],[15,16,15,28],[16,16,16,28],[17,16,17,28],[18,16,18,28],[47,16,47,28],[37,16,37,28],[38,16,38,28],[51,16,51,28],[52,16,52,28],[53,16,53,28],[42,16,42,28],[43,16,43,28],[44,16,44,28],[45,16,45,28],[46,16,46,28],[49,16,49,28],[50,16,50,28]]}
[]
[null,null,"制作内容リスト項目設定"]
[]
[null,null,"内容リスト設定","P1","P2","P3","PM1","PM2","PM3","PA1","PA2","PA3","PA4","PA5","PA6"]
[]
[null,null,"制作オリエンテーション",0.2,null,null,0.2,null,null,null,null,null,null,null,null,null,"土曜・日曜・祝日倍率　",2,"倍"]
[null,null,"各所リサーチ",0,null,null,0.5,null,null,0.5,null,null,null,null,null,null,"【スケジュール作成例】\n※下記セルをスケジュール表にコピペすることもできます。"]
[null,null,"各所スケジュール調整",0,null,null,0.5,null,null,0.2,null,null,null,null,null,null,"制作オリエンテーション"]
[null,null,"見積書・工数スケジュール作成",0.5,null,null,0.5,null,null,0.2,null,null,null,null,null,null,"各所リサーチ、各所スケジュール調整"]
[null,null,"制作仕様書案作成",0.5,null,null,null,null,null,null,null,null,null,null,null,null,"各所リサーチ、各所スケジュール調整"]
[null,null,"制作方針案提出",0.2,null,null,null,null,null,null,null,null,null,null,null,null,"見積書・工数スケジュール作成、制作仕様書案作成"]
[null,null,"方針策定打合せ",0.2,null,null,0.2,null,null,null,null,null,null,null,null,null,"制作方針案提出、方針策定打合せ"]
[null,null,"制作方針決定・メール確認書受領",null,null,null,null,null,null,null,null,null,null,null,null,null,"制作方針決定、メール確認書受領"]
[null,null,"見積書・工数スケジュール・制作仕様書提出",0.2,null,null,null,null,null,null,null,null,null,null,null,null,"見積書・工数スケジュール・制作仕様書提出、各所リサーチ"]
[null,null,"演出コンテ発注打合せ",0.2,null,null,0.2,null,null,0.2,null,null,null,null,null,null,"各所リサーチ、各所スケジュール調整 "]
[null,null,"プレロケハン・ロケ地資料作成",null,null,null,0.5,null,null,1,null,null,null,null,null,null,"ディレクター決定、各所スケジュール調整"]
[null,null,"演出コンテ打合せ",0.2,null,null,0.5,null,null,0.2,null,null,null,null,null,null,"各所リサーチ、各所スケジュール調整 "]
[null,null,"演出コンテプレゼン",0.2,null,null,0.2,null,null,null,null,null,null,null,null,null,"演出コンテ発注打合せ、各所リサーチ、各所スケジュール調整"]
[null,null,"メインスタッフ打合せ(撮影・照明・美術)",0.2,null,null,0.5,null,null,0.5,null,null,null,null,null,null,"プレロケハン・ロケ地資料作成、各所リサーチ"]
[null,null,"各所打合せ(衣裳、音楽、CG等)",0.2,null,null,0.2,null,null,null,null,null,null,null,null,null,"プレロケハン・ロケ地資料作成"]
[null,null,"各所見積リサーチ・見積書作成",0.5,null,null,1,null,null,0.5,null,null,null,null,null,null,"演出コンテ打合せ"]
[null,null,"オーディション・出演者資料作成",0,null,null,0.5,null,null,1,null,null,null,null,null,null,"演出コンテプレゼン、各所打合せ(衣裳、音楽、CG等)"]
[null,null,"出演者資料提出・出演者決定",0,null,null,null,null,null,null,null,null,null,null,null,null,"各所見積リサーチ・見積書作成"]
[null,null,"香盤表など資料作成",0,null,null,1,null,null,1,null,null,null,null,null,null,"オーディション・出演者資料作成"]
[null,null,"スタッフロケハン",0.5,null,null,0.5,null,null,0.5,0.5,null,null,null,null,null,"オーディション・出演者資料作成、香盤表など資料作成"]
[null,null,"オールスタッフ打合せ",0.2,null,null,0.5,null,null,0.5,0.5,null,null,null,null,null,"出演者資料提出・出演者決定"]
[null,null,"各種チェック(音楽、CG等)",0.2,null,null,0.2,null,null,0.2,null,null,null,null,null,null,"スタッフロケハン、オールスタッフ打合せ、各種チェック(音楽、CG等)"]
[null,null,"衣裳チェック",0.2,null,null,0.2,null,null,0.2,0.2,null,null,null,null,null,"PPM資料作成"]
[null,null,"PPM資料作成",null,null,null,1,null,null,1,1,null,null,null,null,null,"PPM資料作成、見積書・スケジュール作成"]
[null,null,"PPM",0.2,null,null,null,null,null,null,null,null,null,null,null,null,"PPM"]
[null,null,"PPMフィードバック",0.2,null,null,0.2,null,null,0.2,0.2,null,null,null,null,null,"PPMフィードバック、撮影用資料作成・備品準備"]
[null,null,"衣裳フィッティング",0.2,null,null,0.5,null,null,0.5,0.2,null,null,null,null,null,"衣裳フィッティング、撮影用資料作成・備品準備"]
[null,null,"撮影用資料作成・備品準備",null,null,null,0.5,null,null,1,1,0.5,null,null,null,null,"建込、撮影用資料作成・備品準備"]
[null,null,"建込",null,null,null,null,null,null,null,null,null,null,null,null,null,"建込、撮影用資料作成・備品準備"]
[null,null,"アングルチェック・最終確認",0.5,null,null,1,null,null,1.5,1.5,1,null,null,null,null,"アングルチェック・最終確認、撮影用資料作成・備品準備"]
[null,null,"撮影(スタジオ)",1,null,null,1.5,null,null,1.5,1.5,1,null,null,null,null,"撮影(スタジオ)"]
[null,null,"撮影(ロケ)",1,null,null,1.5,null,null,1.5,1.5,1,1,null,null,null,"撮影(ロケ)"]
[null,null,"資材返却・撤収など",null,null,null,null,null,null,0.5,0.5,null,null,null,null,null,"撮影(ロケ予備)、仮編集準備"]
[null,null,"仮編集準備",null,null,null,null,null,null,0.5,null,null,null,null,null,null,"仮編集"]
[null,null,"仮編集",null,null,null,0.5,null,null,0.5,null,null,null,null,null,null,"仮編集・編集チェック・修正対応、試写用素材作成→チェック、カット表など試写資料作成、各種チェック(音楽、CG等)"]
[null,null,"仮編集・編集チェック・修正対応",0.5,null,null,1,null,null,1,null,null,null,null,null,null,"仮編集試写・試写フィードバック"]
[null,null,"試写用素材作成→チェック",null,null,null,0.5,null,null,0.5,null,null,null,null,null,null,"グレーディング"]
[null,null,"カット表など試写資料作成",null,null,null,0.5,null,null,0.5,null,null,null,null,null,null,"本編集"]
[null,null,"仮編集試写・試写フィードバック",0.2,null,null,0.5,null,null,0.2,null,null,null,null,null,null,"本編集"]
[null,null,"グレーディング",0.2,null,null,1,null,null,1,null,null,null,null,null,null,"本編集・編集チェック・修正対応"]
[null,null,"本編集",null,null,null,null,null,null,0.5,null,null,null,null,null,null,"音楽録音"]
[null,null,"本編集・編集チェック・修正対応",1,null,null,1,null,null,1,null,null,null,null,null,null,"MAV、初号/OAフォーマットマスタリング、試写用素材作成→チェック、カット表など試写資料作成"]
[null,null,"音楽録音",0.2,null,null,0.2,null,null,0.2,null,null,null,null,null,null,"初号試写・納品、精算など事後処理業務"]
[null,null,"MAV",0.2,null,null,0.5,null,null,0.5,null,null,null,null,null,null,"事後見積書作成、精算など事後処理業務"]
[null,null,"初号フォーマットマスタリング",null,null,null,0.2,null,null,null,null,null,null,null,null,null,"精算など事後処理業務"]
[null,null,"初号/OAフォーマットマスタリング",null,null,null,0.5]
[null,null,"初号試写・納品"]
[null,null,"事後見積書作成",0.5,null,null,0.5,null,null,0.5]
[null,null,"精算など事後処理業務",0.2,null,null,0.5,null,null,0.5,0.2,0.2]
[]
[null,null,null,null,null,null,null,null,null,null,null,null,null,null,null,null,"2018-05-16T15:50:45"]
[]
[0]
[0]